bitfinex/quotes_SOLUSD_20260220
["timestamp","ask_amount","ask_price","bid_price","bid_amount"]
[1771567178812,0.6673109,83.359,83.334,0.66872113]
[1771567181321,11.99644905,83.358,83.334,0.66872113]
[1771567181624,0.6673109,83.357,83.334,0.66872113]
[1771567183921,11.99673688,83.356,83.334,0.66872113]
[1771567184105,0.6673109,83.355,83.334,0.66872113]
[1771567184621,11.99567185,83.364,83.336,0.66872113]
[1771567184928,0.6673109,83.363,83.336,0.66872113]
[1771567187131,0.6673109,83.363,83.34,3.73805431]
[1771567187436,0.6673109,83.378,83.351,0.66872113]
[1771567189831,0.6673109,83.376,83.342,0.66872113]
[1771567192415,3.73805431,83.37,83.342,0.66872113]
[1771567192614,0.6673109,83.369,83.342,0.66872113]
[1771567195545,3.73805431,83.37,83.331,12.66905713]
[1771567195546,0.6673109,83.367,83.331,12.66905713]
[1771567195745,0.6673109,83.359,83.331,12.66905713]
[1771567196242,0.6673109,83.359,83.331,12.000336]
[1771567196430,0.6673109,83.359,83.332,0.66872113]
[1771567198622,0.6673109,83.359,83.334,0.66872113]
[1771567200656,0.6673109,83.359,83.296,3.69383402]
[1771567200657,0.6673109,83.398,83.351,0.66872113]
[1771567200831,0.2,83.4,83.341,11.99876854]
[1771567200832,0.2,83.4,83.381,0.66872113]
[1771567211069,0.2,83.41,83.391,0.69966116]
[1771567216054,0.6884381,83.409,82.799,202.84724402]
[1771567216253,0.2,83.41,83.36,3.73805431]
[1771567216254,0.6884381,83.399,83.36,3.73805431]
[1771567216463,0.6884381,83.399,83.37,3.73805431]
[1771567217645,0.6884381,83.397,83.37,3.73805431]
[1771567218252,0.6884381,83.397,83.371,0.69966116]
[1771567220460,0.6884381,83.397,83.373,0.69966116]
[1771567220960,0.6884381,83.402,83.381,0.69966116]
[1771567221752,0.6884381,83.409,83.391,0.69966116]
[1771567221956,0.2,83.41,83.4,3.73040754]
[1771567222268,0.2,83.41,83.401,0.69966116]
[1771567222450,11.98758369,83.42,83.401,0.69966116]
[1771567222768,0.6884381,83.419,83.401,0.69966116]
[1771567223661,0.2,83.43,83.411,0.69966116]
[1771567223869,0.8884381,83.43,83.411,0.69966116]
[1771567224059,0.6884381,83.429,83.411,0.69966116]
[1771567225959,0.6884381,83.427,83.374,3.69383402]
[1771567226167,0.6884381,83.409,83.381,0.69966116]
[1771567226548,11.98638346,83.428,83.37,12.6943208]
[1771567226549,0.6884381,83.399,83.37,12.6943208]
[1771567226745,0.6884381,83.399,83.361,0.69966116]
[1771567226953,3.69383402,83.425,83.361,0.69966116]
[1771567226954,0.6884381,83.389,83.361,0.69966116]
[1771567229767,0.6884381,83.389,83.363,0.69966116]
[1771567229964,0.6884381,83.401,83.38,4.4300687]
[1771567230265,0.6884381,83.401,83.38,0.69966116]
[1771567233166,0.6884381,83.401,83.381,0.69966116]
[1771567235661,0.6884381,83.399,83.375,0.69966116]
[1771567238256,0.6884381,83.399,83.376,0.64291066]
[1771567240675,0.68412425,83.409,83.377,11.99371529]
[1771567240872,0.68412425,83.409,83.378,0.64291066]
[1771567241072,41.95435365,83.424,83.381,0.64291066]
[1771567241073,0.68412425,83.423,83.381,0.64291066]
[1771567241275,0.68412425,83.419,83.381,0.64291066]
[1771567243578,0.68412425,83.409,83.371,0.64291066]
[1771567243785,0.68412425,83.409,83.372,0.64291066]
[1771567246381,0.68412425,83.407,83.374,0.64291066]
[1771567247481,0.68412425,83.389,83.36,3.73040754]
[1771567247684,0.68412425,83.389,83.361,0.64291066]
[1771567250787,0.68412425,83.389,83.363,0.64291066]
[1771567251080,0.68412425,83.387,83.362,11.99587341]
[1771567251281,0.68412425,83.397,83.363,0.64291066]
[1771567252685,0.68412425,83.389,83.363,0.64291066]
[1771567252901,0.68412425,83.389,83.365,0.64291066]
[1771567255093,0.68412425,83.388,83.365,0.64291066]
[1771567255476,0.68412425,83.388,83.367,0.64291066]
[1771567258593,0.68412425,83.393,83.367,0.64291066]
[1771567258779,0.68412425,83.398,83.371,0.64291066]
[1771567259383,0.68412425,83.396,83.371,0.64291066]
[1771567261195,0.68412425,83.409,83.373,0.64291066]
[1771567261495,0.68412425,83.408,83.373,0.64291066]
[1771567261796,0.68412425,83.389,83.354,0.64291066]
[1771567263479,0.68412425,83.389,83.36,4.39096688]
[1771567263880,0.68412425,83.389,83.361,0.66055934]
[1771567268895,11.99213316,83.388,83.361,0.66055934]
[1771567269107,0.65433663,83.387,83.363,0.71095689]
[1771567271376,0.65433663,83.399,83.365,0.71095689]
[1771567271619,0.65433663,83.399,83.364,11.99558562]
[1771567271620,0.65433663,83.399,83.371,0.71095689]
[1771567273096,0.65433663,83.398,83.371,0.71095689]
[1771567273284,0.65433663,83.398,83.364,11.99558562]
[1771567273285,3.73040754,83.39,83.364,11.99558562]
[1771567273600,0.65433663,83.398,83.364,11.99558562]
[1771567273601,0.65433663,83.389,83.364,11.99558562]
[1771567275393,0.65433663,83.416,83.371,0.71095689]
[1771567275593,0.65433663,83.399,83.361,0.71095689]
[1771567279210,0.65433663,83.399,83.34,3.73040754]
[1771567279211,0.65433663,83.369,83.332,3.69383402]
[1771567279383,0.65433663,83.359,83.331,0.71095689]
[1771567280399,0.65433663,83.359,83.324,0.71095689]
[1771567281109,11.99644905,83.358,83.326,0.71095689]
[1771567281408,0.65433663,83.357,83.326,0.71095689]
[1771567283507,0.65433663,83.355,83.326,0.71095689]
[1771567283805,11.99673688,83.356,83.28,3.73040754]
[1771567283806,0.65433663,83.339,83.304,12.00420143]
[1771567284006,0.65433663,83.339,83.304,12.71515832]
[1771567284216,0.65433663,83.329,83.304,12.71515832]
[1771567284710,0.65433663,83.329,83.304,0.71095689]
[1771567285919,0.65433663,83.327,83.298,0.71095689]
[1771567289114,0.65433663,83.325,83.298,0.71095689]
[1771567290685,0.65433663,83.325,83.3,0.71095689]
[1771567291012,0.65433663,83.339,83.311,0.71095689]
[1771567291208,0.65433663,83.339,83.312,0.71095689]
[1771567291695,12.65366466,83.338,83.312,0.71095689]
[1771567292603,0.65433663,83.337,83.312,0.71095689]
[1771567293406,0.65433663,83.337,83.299,30.01236509]
[1771567293407,0.65433663,83.348,83.321,0.71095689]
[1771567295812,0.65433663,83.348,83.323,0.71095689]
[1771567296711,0.65433663,83.369,83.341,0.71095689]
[1771567296916,0.6747732,83.378,83.351,0.70824718]
[1771567298217,0.6747732,83.378,83.353,0.70824718]
[1771567298408,0.6747732,83.377,83.353,0.70824718]
[1771567299997,0.6747732,83.377,83.346,0.70824718]
[1771567300817,11.99371529,83.377,83.347,11.99803232]
[1771567301008,0.6747732,83.376,83.347,11.99803232]
[1771567301915,11.99400299,83.375,83.347,11.99803232]
[1771567302222,0.6747732,83.374,83.347,11.99803232]
[1771567302416,0.6747732,83.369,83.345,0.70824718]
[1771567302599,0.6747732,83.369,83.332,0.70824718]
[1771567302999,0.6747732,83.359,83.332,0.70824718]
[1771567303600,0.6747732,83.359,83.319,30.00504309]
[1771567303601,0.6747732,83.359,83.326,0.70824718]
[1771567303915,0.6747732,83.368,83.331,0.70824718]
[1771567304097,11.99515395,83.367,83.333,0.70824718]
[1771567304301,0.6747732,83.366,83.333,0.70824718]
[1771567304504,0.6747732,83.366,83.332,12.000192]
[1771567304505,0.6747732,83.379,83.341,0.70824718]
[1771567306321,0.6747732,83.379,83.351,0.70824718]
[1771567308012,0.6747732,83.377,83.351,0.70824718]
[1771567308320,0.6747732,83.377,83.343,0.70824718]
[1771567309136,0.6747732,83.369,83.343,0.70824718]
[1771567309431,0.6747732,83.369,83.336,11.99956096]
[1771567310605,0.6747732,83.359,83.33,0.70824718]
[1771567311228,0.6747732,83.357,83.331,0.70824718]
[1771567313131,0.6747732,83.355,83.331,0.70824718]
[1771567315419,0.6747732,83.353,83.331,0.70824718]
[1771567319347,0.6747732,83.353,83.332,0.70824718]
[1771567320953,0.6747732,83.361,83.332,0.70824718]
[1771567321121,0.6747732,83.361,83.331,12.00033087]
[1771567321122,11.99552572,83.365,83.341,0.70824718]
[1771567321442,0.6747732,83.365,83.342,0.70824718]
[1771567323320,11.99486619,83.369,83.342,0.70824718]
[1771567323521,0.68388221,83.371,83.344,0.70170577]
[1771567325148,0.68388221,83.376,83.346,0.70170577]
[1771567327242,0.63749613,83.369,83.345,11.99832023]
[1771567327825,0.63749613,83.369,83.341,0.69164139]
[1771567328432,0.63749613,83.369,83.336,11.99954509]
[1771567328627,3.7361034,83.36,83.336,11.99954509]
[1771567328832,0.63749613,83.359,83.336,11.99954509]
[1771567329028,0.63749613,83.359,83.332,12.0001568]
[1771567329349,0.63749613,83.357,83.331,0.69164139]
[1771567329750,0.63749613,83.349,83.326,0.69164139]
[1771567336052,0.63749613,83.349,83.328,0.69164139]
[1771567337152,3.7361034,83.37,83.327,12.00091206]
[1771567337153,0.63749613,83.369,83.341,0.69164139]
[1771567337737,0.63749613,83.377,83.351,0.69164139]
[1771567339053,0.63749613,83.375,83.351,0.69164139]
[1771567341858,11.99414685,83.374,83.346,0.69164139]
[1771567342172,0.63749613,83.369,83.346,0.69164139]
[1771567343939,0.63749613,83.369,83.347,11.99803232]
[1771567344162,0.63749613,83.369,83.348,0.69164139]
[1771567346955,0.63749613,83.367,83.348,0.69164139]
[1771567347166,0.63749613,83.367,83.343,12.6901855]
[1771567347354,0.63749613,83.367,83.343,11.99854411]
[1771567347562,0.63749613,83.367,83.344,0.69164139]
[1771567349465,0.63749613,83.365,83.346,0.69164139]
[1771567349653,0.63749613,83.365,83.341,0.69164139]
[1771567351362,0.63749613,83.365,83.342,11.99875212]
[1771567351563,0.63749613,83.365,83.343,0.69164139]
[1771567352574,0.63749613,83.363,83.337,0.69164139]
[1771567354481,0.63749613,83.361,83.337,0.69164139]
[1771567357786,0.67546752,83.359,83.337,0.69164139]
[1771567358086,0.67546752,83.359,83.331,0.64148109]
[1771567359384,0.67546752,83.357,83.32,3.73521264]
[1771567359570,0.67546752,83.357,83.323,0.64148109]
[1771567361490,0.67546752,83.355,83.331,0.64148109]
[1771567362594,0.67546752,83.353,83.331,0.64148109]
[1771567362892,0.67546752,83.353,83.332,0.64148109]
[1771567363570,0.67546752,83.365,83.341,0.64148109]
[1771567364295,0.67546752,83.371,83.35,3.73521264]
[1771567364481,0.67546752,83.389,83.351,0.64148109]
[1771567365195,0.67546752,83.389,83.361,0.64148109]
[1771567365390,0.67546752,83.403,83.362,0.43714477]
[1771567365576,3.73521264,83.39,83.356,0.64148109]
[1771567366477,3.69383402,83.41,83.328,0.64148109]
[1771567366478,7.47042528,83.37,83.328,0.64148109]
[1771567366683,3.73521264,83.35,83.328,0.64148109]
[1771567366974,3.73521264,83.36,83.328,0.64148109]
[1771567367174,11.99630513,83.359,83.328,0.64148109]
[1771567367573,0.67546752,83.358,83.328,0.64148109]
[1771567367771,0.67546752,83.369,83.34,3.73521264]
[1771567367988,15.7299657,83.37,83.341,0.64148109]
[1771567368291,0.67546752,83.375,83.341,0.64148109]
[1771567369490,0.67546752,83.375,83.343,0.64148109]
[1771567371898,3.73521264,83.38,83.345,0.64148109]
[1771567372192,0.67546752,83.381,83.351,0.64148109]
[1771567375791,0.67546752,83.381,83.353,0.64148109]
[1771567377506,0.67546752,83.381,83.354,11.99702473]
[1771567377706,0.67546752,83.381,83.355,0.64148109]
[1771567380506,0.67546752,83.379,83.34,3.73521264]
[1771567380687,0.67546752,83.379,83.341,0.64148109]
[1771567381308,11.99321155,83.381,83.321,0.64148109]
[1771567381309,0.67546752,83.349,83.321,0.64148109]
[1771567381609,0.67546752,83.349,83.317,12.00235246]
[1771567381813,0.67546752,83.349,83.317,12.64383355]
[1771567382497,0.67546752,83.347,83.317,12.64383355]
[1771567382705,0.67546752,83.347,83.286,57.73383402]
[1771567382706,0.67546752,83.329,83.291,12.00609909]
[1771567383021,0.67546752,83.319,83.291,12.00609909]
[1771567383314,0.67546752,83.319,83.29,0.71684837]
[1771567383689,0.67546752,83.319,83.29,0.1]
[1771567383888,0.62986614,83.309,83.29,0.1]
[1771567384409,0.62986614,83.309,83.271,0.61684837]
[1771567384623,0.62986614,83.309,83.26,30.12612961]
[1771567384624,0.62986614,83.289,83.27,0.1]
[1771567386293,0.62986614,83.307,83.281,0.61684837]
[1771567387113,0.64067898,83.305,83.281,0.61684837]
[1771567387806,0.64067898,83.305,83.275,0.63326862]
[1771567388711,0.64067898,83.305,83.276,12.6415303]
[1771567390413,0.64067898,83.305,83.277,0.63326862]
[1771567390608,0.64067898,83.305,83.283,0.63326862]
[1771567391315,0.64067898,83.327,83.301,0.63326862]
[1771567393023,0.64067898,83.327,83.303,0.63326862]
[1771567396720,0.64067898,83.326,83.303,0.63326862]
[1771567398212,0.64067898,83.324,83.298,0.63326862]
[1771567398419,0.64067898,83.324,83.29,16.37465057]
[1771567398714,0.64067898,83.319,83.29,12.00616931]
[1771567402415,0.64067898,83.318,83.286,0.63326862]
[1771567402910,0.64067898,83.318,83.29,3.73521264]
[1771567403110,0.64067898,83.33,83.301,0.63326862]
[1771567403419,0.64067898,83.329,83.301,0.63326862]
[1771567403995,0.64067898,83.335,83.301,0.63326862]
[1771567404220,0.64067898,83.335,83.311,0.63326862]
[1771567405420,0.64067898,83.344,83.313,0.63326862]
[1771567406222,0.64067898,83.339,83.313,0.63326862]
[1771567407408,3.7394173,83.34,83.31,3.7394173]
[1771567407409,0.64067898,83.337,83.31,3.7394173]
[1771567407718,0.64067898,83.337,83.311,0.63326862]
[1771567408630,0.64067898,83.337,83.312,0.63326862]
[1771567409724,0.64067898,83.364,83.331,0.63326862]
[1771567410502,0.64067898,83.364,83.341,0.63326862]
[1771567410703,11.9948638,83.37,83.342,0.63326862]
[1771567410901,0.64067898,83.371,83.351,0.63326862]
[1771567411504,0.64067898,83.377,83.351,0.63326862]
[1771567411704,30.17631459,83.4,83.361,0.63326862]
[1771567411705,0.64067898,83.383,83.361,0.63326862]
[1771567412106,0.64067898,83.389,83.37,4.37268592]
[1771567412429,0.64067898,83.389,83.371,0.63326862]
[1771567418628,0.61703326,83.387,83.363,0.64895802]
[1771567419033,0.61703326,83.387,83.357,0.64895802]
[1771567420721,0.61703326,83.387,83.36,3.7394173]
[1771567421330,11.99242079,83.386,83.36,3.7394173]
[1771567421631,0.61703326,83.385,83.36,3.7394173]
[1771567422841,0.61703326,83.385,83.341,29.99711266]
[1771567422842,0.61703326,83.385,83.354,0.64895802]
[1771567423037,0.61703326,83.385,83.361,0.64895802]
[1771567423219,0.61703326,83.384,83.36,3.7394173]
[1771567423929,0.61703326,83.384,83.361,0.64895802]
[1771567426544,0.61703326,83.384,83.363,0.64895802]
[1771567430442,0.61703326,83.389,83.363,0.64895802]
[1771567430748,0.61703326,83.389,83.365,0.64895802]
[1771567434651,0.61703326,83.387,83.365,0.64895802]
[1771567437952,0.61703326,83.385,83.357,0.64895802]
[1771567439153,0.61703326,83.383,83.359,0.64895802]
[1771567440354,0.61703326,83.383,83.36,12.64511924]
[1771567440555,0.61703326,83.383,83.361,0.64895802]
[1771567441955,0.61703326,83.369,83.338,0.64895802]
[1771567442253,0.61703326,83.367,83.338,0.64895802]
[1771567442666,0.61703326,83.359,83.331,0.64895802]
[1771567448257,0.61703326,83.359,83.332,0.59869837]
[1771567448564,0.63772934,83.358,83.332,0.59869837]
[1771567450362,0.63772934,83.357,83.332,0.59869837]
[1771567450969,0.63772934,83.357,83.334,0.59869837]
[1771567451460,0.63772934,83.356,83.334,0.59869837]
[1771567452662,0.63772934,83.356,83.336,0.59869837]
[1771567454850,0.63772934,83.354,83.336,0.59869837]
[1771567455050,0.63772934,83.359,83.336,0.59869837]
[1771567456777,12.63417839,83.358,83.336,0.59869837]
[1771567457143,0.63772934,83.357,83.336,0.59869837]
[1771567458761,0.63772934,83.355,83.336,0.59869837]
[1771567462758,0.63772934,83.379,83.351,0.59869837]
[1771567463769,0.63772934,83.395,83.371,0.59869837]
[1771567463964,11.99055144,83.399,83.371,0.59869837]
[1771567464552,12.62828078,83.399,83.371,0.59869837]
[1771567465555,12.62828078,83.399,83.372,0.59869837]
[1771567465751,0.2,83.4,83.381,0.59869837]
[1771567465966,0.63772934,83.412,83.381,0.59869837]
[1771567467987,0.63772934,83.412,83.38,3.731946]
[1771567467988,0.63772934,83.409,83.383,0.59869837]
[1771567468484,0.63772934,83.409,83.376,0.59869837]
[1771567469470,11.98925762,83.408,83.377,11.99371529]
[1771567469678,0.63772934,83.407,83.378,0.59869837]
[1771567472678,0.63772934,83.399,83.362,0.59869837]
[1771567475993,0.63772934,83.397,83.364,0.59869837]
[1771567476586,0.63772934,83.397,83.363,11.99572952]
[1771567476587,0.63772934,83.397,83.371,0.59869837]
[1771567476967,0.60651467,83.409,83.371,0.59869837]
[1771567477684,0.60651467,83.406,83.373,0.5928597]
[1771567482982,0.60651467,83.406,83.375,0.5928597]
[1771567483485,0.60651467,83.406,83.381,0.5928597]
[1771567484066,0.60651467,83.404,83.381,0.5928597]
[1771567487565,0.60651467,83.404,83.37,3.731946]
[1771567487566,11.98997637,83.403,83.375,0.5928597]
[1771567487886,0.60651467,83.389,83.342,0.5928597]
[1771567488084,0.60651467,83.379,83.342,0.5928597]
[1771567488297,0.60651467,83.369,83.335,0.5928597]
[1771567489679,0.60651467,83.359,83.335,0.5928597]
[1771567490187,0.60651467,83.359,83.337,0.5928597]
[1771567491487,0.60651467,83.359,83.339,0.5928597]
[1771567492392,0.60651467,83.358,83.333,11.99995134]
[1771567493686,0.60651467,83.358,83.333,12.59281104]
[1771567493883,0.60651467,83.356,83.329,12.59345476]
[1771567496899,0.60651467,83.356,83.329,0.5928597]
[1771567499597,0.60651467,83.356,83.329,12.00055298]
[1771567499802,0.60651467,83.356,83.33,0.5928597]
[1771567500099,0.60651467,83.356,83.331,0.5928597]
[1771567500885,29.98687942,83.37,83.341,0.5928597]
[1771567500886,4.33846067,83.37,83.341,0.5928597]
[1771567501084,0.60651467,83.369,83.341,0.5928597]
[1771567502097,0.60651467,83.369,83.343,0.5928597]
[1771567503688,0.62289969,83.368,83.343,0.5928597]
[1771567504705,0.62289969,83.359,83.338,0.59485328]
[1771567505294,0.62289969,83.369,83.339,0.59485328]
[1771567505607,0.62289969,83.368,83.339,0.59485328]
[1771567506208,29.98344306,83.38,83.341,0.59485328]
[1771567506209,0.62289969,83.375,83.341,0.59485328]
[1771567509315,0.56380072,83.369,83.343,0.5905807]
[1771567510824,0.56380072,83.369,83.345,0.5905807]
[1771567511195,0.56380072,83.369,83.344,11.99846419]
[1771567516216,0.56380072,83.369,83.344,0.5905807]
[1771567516429,3.731946,83.38,83.351,0.5905807]
[1771567516731,0.56380072,83.379,83.351,0.5905807]
[1771567518704,0.56380072,83.377,83.351,0.5905807]
[1771567519627,0.56380072,83.377,83.352,11.9973126]
[1771567520003,0.56380072,83.377,83.353,0.5905807]
[1771567521806,11.99385914,83.376,83.348,0.5905807]
[1771567522003,0.56380072,83.375,83.348,0.5905807]
[1771567522507,0.56380072,83.369,83.348,0.5905807]
[1771567525017,0.56380072,83.369,83.348,12.58837037]
[1771567526428,0.56380072,83.369,83.349,0.5905807]
[1771567527940,0.56380072,83.369,83.35,11.99760047]
[1771567528822,0.56380072,83.369,83.35,12.58818117]
[1771567530629,0.56380072,83.369,83.351,0.5905807]
[1771567533925,0.56380072,83.369,83.353,0.5905807]
[1771567536112,0.56380072,83.369,83.349,12.58821943]
[1771567536331,0.56380072,83.369,83.35,0.5905807]
[1771567543745,3.73553357,83.36,83.331,0.58740221]
[1771567543934,0.55960897,83.359,83.332,0.58740221]
[1771567545751,3.73553357,83.34,83.311,0.58740221]
[1771567545931,0.55960897,83.339,83.312,0.58740221]
[1771567547952,11.99932803,83.338,83.312,0.58740221]
[1771567548160,0.55960897,83.337,83.312,0.58740221]
[1771567548444,0.55960897,83.329,83.312,0.58740221]
[1771567548958,0.55960897,83.329,83.307,0.58740221]
[1771567549948,0.55960897,83.329,83.308,12.0036491]
[1771567550138,0.55960897,83.329,83.308,12.59105131]
[1771567550339,0.55960897,83.329,83.309,0.58740221]
[1771567551138,0.55960897,83.329,83.311,0.58740221]
[1771567552752,0.55960897,83.337,83.311,0.58740221]
[1771567553053,0.55960897,83.337,83.313,0.58740221]
[1771567555858,0.55960897,83.337,83.3,3.73553357]
[1771567555859,0.55960897,83.337,83.315,0.58740221]
[1771567558950,12.55713764,83.351,83.321,0.58740221]
[1771567559148,0.55960897,83.35,83.321,0.58740221]
[1771567559470,0.55960897,83.349,83.321,0.58740221]
[1771567560757,0.55960897,83.359,83.321,0.58740221]
[1771567561256,11.99644905,83.358,83.322,12.00163222]
[1771567561438,0.55960897,83.357,83.323,0.58740221]
[1771567565069,0.55960897,83.357,83.324,12.00134415]
[1771567565245,0.55960897,83.357,83.325,0.54949951]
[1771567567363,0.55922044,83.355,83.327,0.52833475]
[1771567570251,0.55922044,83.349,83.329,0.52833475]
[1771567570652,0.55922044,83.349,83.328,12.00076804]
[1771567571187,0.55922044,83.378,83.341,0.52833475]
[1771567572265,0.55922044,83.378,83.351,0.52833475]
[1771567572650,0.55922044,83.378,83.353,0.52833475]
[1771567576080,0.55922044,83.389,83.361,0.52833475]
[1771567577065,0.55922044,83.389,83.363,0.52833475]
[1771567578481,11.99205188,83.389,83.363,0.52833475]
[1771567578670,0.55922044,83.388,83.363,0.52833475]
[1771567579370,0.55922044,83.386,83.363,0.52833475]
[1771567579761,0.55922044,83.386,83.351,0.52833475]
[1771567580089,0.55922044,83.379,83.354,12.52531102]
[1771567581166,0.55922044,83.379,83.355,0.52833475]
[1771567582368,0.55922044,83.379,83.354,11.99697627]
[1771567582369,0.55922044,83.377,83.346,0.52833475]
[1771567583479,11.99385914,83.376,83.346,0.52833475]
[1771567583691,0.55922044,83.375,83.348,0.52833475]
[1771567585199,0.55922044,83.375,83.347,11.99803232]
[1771567585200,0.55922044,83.375,83.351,0.52833475]
[1771567586788,0.55922044,83.375,83.352,11.9973126]
[1771567586971,0.55922044,83.375,83.353,0.52833475]
[1771567587172,0.55922044,83.373,83.353,0.52833475]
[1771567588494,0.55922044,83.385,83.355,0.52833475]
[1771567588670,0.55922044,83.385,83.361,0.52833475]
[1771567590987,0.55922044,83.383,83.361,0.52833475]
[1771567593675,0.55922044,83.383,83.363,0.52833475]
[1771567599498,0.55922044,83.383,83.365,0.50449312]
[1771567599684,0.49771795,83.394,83.365,0.50449312]
[1771567603702,0.49771795,83.394,83.367,0.50449312]
[1771567604087,0.49771795,83.389,83.36,3.7335165]
[1771567604404,0.49771795,83.379,83.351,0.50449312]
[1771567606498,0.49771795,83.379,83.352,11.9973126]
[1771567607006,0.49771795,83.379,83.353,0.50449312]
[1771567609102,0.49771795,83.379,83.354,11.99702473]
[1771567609418,0.49771795,83.379,83.355,0.50449312]
[1771567610194,12.49030815,83.385,83.361,0.50449312]
[1771567610412,0.49771795,83.384,83.361,0.50449312]
[1771567614397,11.99198935,83.389,83.361,0.50449312]
[1771567614717,12.4897073,83.389,83.361,0.50449312]
[1771567614913,0.49771795,83.388,83.361,0.50449312]
[1771567617326,12.48999492,83.387,83.361,0.50449312]
[1771567617815,11.99227697,83.387,83.361,0.50449312]
[1771567618011,0.49771795,83.386,83.363,0.50449312]
[1771567618215,0.49771795,83.394,83.371,0.50449312]
[1771567618799,0.49771795,83.407,83.371,0.50449312]
[1771567619000,0.49771795,83.406,83.381,0.50449312]
[1771567619618,0.49771795,83.406,83.382,0.50449312]
[1771567619816,41.95218162,83.429,83.382,0.50449312]
[1771567620125,0.49771795,83.428,83.391,0.50449312]
[1771567620301,0.49771795,83.419,83.391,0.50449312]
[1771567621301,0.49771795,83.419,83.39,3.7335165]
[1771567621302,0.49771795,83.417,83.383,0.50449312]
[1771567621506,0.49771795,83.422,83.401,0.50449312]
[1771567621705,0.49771795,83.419,83.387,0.50449312]
[1771567623023,0.50287292,83.417,83.391,0.53121434]
[1771567623719,0.50287292,83.417,83.387,11.99214004]
[1771567623720,0.50287292,83.429,83.401,0.53121434]
[1771567624522,0.50287292,83.428,83.401,0.53121434]
[1771567624908,0.50287292,83.419,83.383,0.53121434]
[1771567625114,0.50287292,83.419,83.384,0.53121434]
[1771567625523,0.50287292,83.419,83.391,0.53121434]
[1771567627119,0.5296066,83.417,83.391,0.53121434]
[1771567630608,0.5296066,83.415,83.391,0.53121434]
[1771567632832,0.5296066,83.413,83.39,3.7335165]
[1771567633140,11.98839523,83.414,83.316,48.00942558]
[1771567633141,0.5296066,83.409,83.38,3.7335165]
[1771567633433,0.5296066,83.409,83.358,29.99088038]
[1771567633434,0.5296066,83.389,83.355,0.48213033]
[1771567634517,0.5296066,83.387,83.357,0.48213033]
[1771567635010,0.5296066,83.387,83.36,3.7335165]
[1771567635211,0.5296066,83.387,83.361,0.48213033]
[1771567635839,0.5296066,83.399,83.371,0.48213033]
[1771567636515,0.5296066,83.397,83.363,0.48213033]
[1771567639518,0.5296066,83.395,83.365,0.48213033]
[1771567641631,0.5296066,83.395,83.366,11.99529784]
[1771567641833,0.5296066,83.395,83.367,0.48213033]
[1771567644834,0.5296066,83.395,83.371,0.48213033]
[1771567647843,0.5296066,83.395,83.373,0.48213033]
[1771567653142,0.5296066,83.395,83.375,0.48213033]
[1771567653946,0.5296066,83.395,83.297,11.99443458]
[1771567653947,0.5296066,83.389,83.349,0.48213033]
[1771567654239,0.5296066,83.389,83.351,0.48213033]
[1771567657141,0.5296066,83.389,83.353,0.5074421]
[1771567657828,0.49660783,83.387,83.353,0.5074421]
[1771567658435,0.49660783,83.41,83.381,0.5074421]
[1771567658741,0.49660783,83.41,83.356,0.28432314]
[1771567658742,0.49660783,83.41,83.391,0.5074421]
[1771567660754,0.49660783,83.418,83.4,3.73261457]
[1771567661049,0.49660783,83.418,83.391,0.5074421]
[1771567663337,11.98796408,83.417,83.391,0.5074421]
[1771567663634,0.49660783,83.416,83.391,0.5074421]
[1771567666558,0.49660783,83.416,83.4,3.73261457]
[1771567667056,0.49660783,83.416,83.393,0.5074421]
[1771567669337,0.49660783,83.416,83.4,3.73261457]
[1771567669653,0.49660783,83.416,83.393,0.5074421]
[1771567670854,0.49660783,83.416,83.4,3.73261457]
[1771567671051,0.49660783,83.416,83.397,0.5074421]
[1771567671948,0.49660783,83.416,83.393,0.5074421]
[1771567673343,0.49660783,83.421,83.401,0.5074421]
[1771567673950,0.49660783,83.419,83.39,0.5074421]
[1771567674142,0.49660783,83.419,83.39,3.73261457]
[1771567674341,0.49660783,83.419,83.39,4.24005667]
[1771567674549,0.49660783,83.419,83.391,0.5074421]
[1771567675560,0.49660783,83.417,83.391,0.5074421]
[1771567678947,0.49660783,83.415,83.391,0.5074421]
[1771567681245,0.49660783,83.415,83.392,0.5074421]
[1771567683164,0.49660783,83.415,83.394,0.48158649]
[1771567683550,12.45928967,83.427,83.401,0.48158649]
[1771567684237,0.4726393,83.426,83.401,0.48158649]
[1771567685153,0.4726393,83.426,83.403,0.48158649]
[1771567690960,0.2,83.43,83.411,0.46706383]
[1771567691155,0.2,83.43,83.421,0.46706383]
[1771567691361,0.48019916,83.449,83.428,0.46706383]
[1771567691563,0.48019916,83.449,83.431,0.46706383]
[1771567691758,0.48019916,83.449,83.44,3.73261457]
[1771567693269,0.2,83.45,83.44,3.73261457]
[1771567693463,0.2,83.45,83.441,0.46706383]
[1771567693975,0.2,83.45,83.44,3.73261457]
[1771567695883,0.2,83.45,83.44,0.46706383]
[1771567696268,0.2,83.45,83.435,0.46706383]
[1771567696576,0.2,83.45,83.44,3.73261457]
[1771567697165,0.2,83.45,83.44,4.1996784]
[1771567698683,0.2,83.45,83.441,0.46706383]
[1771567698878,0.48019916,83.467,83.45,5.53e-06]
[1771567699064,0.48019916,83.467,83.442,11.98437237]
[1771567699776,0.48019916,83.467,83.44,3.73261457]